bitfinex/quotes_ETHUSD_20241116
["timestamp","ask_amount","ask_price","bid_price","bid_amount"]
[1731773365210,3.19223,3132.6,3132.0,6.19284]
[1731773365518,3.19223,3132.6,3131.9,3.19291]
[1731773365925,3.19236,3132.5,3131.9,3.19291]
[1731773366451,3.19267,3132.2,3131.7,0.3187]
[1731773366797,3.19274,3132.1,3131.7,0.3187]
[1731773367183,3.19274,3132.1,3131.4,3.19345]
[1731773367184,3.20142834,3132.0,3131.4,3.19345]
[1731773367355,3.20142834,3132.0,3131.3,3.19352]
[1731773367501,0.00850834,3132.0,3131.5,3.1933]
[1731773367693,0.00850834,3132.4,3131.9,3.19294]
[1731773368001,3.75622246,3132.9,3130.9,3.19396]
[1731773368002,0.00850834,3132.8,3132.1,3.19266]
[1731773368313,0.00850834,3132.8,3132.3,0.55]
[1731773368519,0.00850834,3132.8,3132.2,0.55]
[1731773368861,0.00850834,3132.2,3131.5,3.19329]
[1731773369138,3.20120834,3132.2,3131.6,3.19318]
[1731773369305,3.75622246,3132.5,3131.6,3.19318]
[1731773369306,3.7647308,3132.5,3131.9,3.1929]
[1731773369512,6.9570908,3132.5,3131.9,3.1929]
[1731773369737,0.00850834,3132.2,3131.7,3.19315]
[1731773369939,3.75622246,3132.5,3131.7,3.19315]
[1731773370095,3.7647308,3132.5,3132.0,3.19275]
[1731773370311,6.9566608,3132.9,3132.1,0.55]
[1731773370511,3.75622246,3132.9,3132.3,3.74244]
[1731773370811,3.20053834,3132.8,3132.3,0.55]
[1731773371043,3.20053834,3132.8,3132.2,3.74263]
[1731773371209,3.75622246,3132.9,3132.4,3.19242]
[1731773371923,3.75622246,3132.9,3132.4,0.55]
[1731773372141,0.00850834,3132.7,3132.1,3.19271]
[1731773372360,0.00850834,3132.7,3132.2,0.55]
[1731773372662,3.20100834,3132.4,3131.8,3.19305]
[1731773373217,3.19257,3132.3,3131.6,3.19318]
[1731773373752,0.00850834,3132.2,3131.7,0.23786478]
[1731773374102,0.00850834,3132.2,3131.8,3.43089478]
[1731773374258,0.00850834,3132.2,3131.9,0.23786478]
[1731773374915,3.75622246,3132.5,3130.9,3.6717]
[1731773374916,3.20134834,3132.0,3131.3,3.19348]
[1731773375255,0.00850834,3132.0,3131.5,3.74335]
[1731773375468,3.20119834,3132.2,3131.5,3.74335]
[1731773375623,0.00850834,3132.0,3131.5,3.74327]
[1731773375821,0.00850834,3132.0,3131.6,0.23818751]
[1731773376025,0.00850834,3132.0,3131.7,0.23818751]
[1731773376226,0.00850834,3132.0,3131.8,0.23818751]
[1731773376469,0.00850834,3132.0,3131.9,0.23818751]
[1731773376623,0.00850834,3132.0,3131.5,3.74327]
[1731773376819,0.00850834,3132.0,3131.6,0.23826766]
[1731773377068,0.00850834,3132.0,3131.7,0.23826766]
[1731773377232,0.00850834,3132.0,3131.8,0.23826766]
[1731773377419,0.00850834,3132.2,3131.9,0.23826766]
[1731773377671,0.00850834,3132.2,3131.8,3.51172]
[1731773377894,0.00850834,3132.4,3131.9,0.23835756]
[1731773379745,3.20094834,3132.4,3131.9,0.23844865]
[1731773379937,3.20094834,3132.4,3131.8,3.19299]
[1731773379938,3.20094834,3132.4,3132.0,0.23843006]
[1731773380144,3.19262,3132.3,3131.8,0.55]
[1731773380380,0.00850834,3131.9,3131.2,3.19356]
[1731773380681,3.19306,3131.8,3131.2,3.19356]
[1731773380895,0.00850834,3131.6,3131.3,0.238441]
[1731773381037,0.00850834,3131.6,3131.4,0.238441]
[1731773381348,0.00850834,3131.6,3131.5,0.238441]
[1731773382304,3.20175834,3131.6,3131.5,0.238441]
[1731773382640,4.21687242,3131.6,3131.5,0.238441]
[1731773382845,4.21687242,3131.6,3130.6,3.19423]
[1731773382846,0.00850834,3131.2,3130.7,3.19416]
[1731773383077,3.20217834,3131.2,3130.8,0.23841988]
[1731773383284,0.00850834,3131.2,3130.9,0.23841988]
[1731773383442,3.20218834,3131.2,3131.0,0.23841988]
[1731773383781,3.75622246,3132.1,3131.1,0.23841988]
[1731773383995,3.75622246,3132.1,3131.2,0.23841988]
[1731773383996,0.00850834,3131.6,3131.2,0.23841988]
[1731773384155,3.75622246,3132.1,3131.3,0.23841988]
[1731773384156,0.00850834,3131.4,3131.3,0.23841988]
[1731773384361,0.00850834,3131.4,3130.9,3.19391]
[1731773384550,0.00850834,3131.4,3131.0,0.23830664]
[1731773384747,0.00850834,3131.2,3131.1,0.23830664]
[1731773384960,0.00850834,3131.2,3130.6,3.19424]
[1731773385153,3.20222834,3131.2,3130.7,0.2383268]
[1731773385364,3.20222834,3131.2,3130.6,3.19418]
[1731773385365,3.20222834,3131.2,3130.8,0.2383268]
[1731773385892,0.00850834,3131.2,3130.9,0.23823241]
[1731773386074,0.00850834,3131.2,3130.9,3.67042347]
[1731773386271,3.19286,3132.0,3130.9,3.67042347]
[1731773386272,3.20160834,3131.8,3130.9,0.47646347]
[1731773386589,0.00850834,3131.6,3131.2,3.19364]
[1731773386880,0.00850834,3131.6,3131.3,0.23823106]
[1731773387084,0.00850834,3131.6,3131.2,3.19364]
[1731773387294,0.00850834,3131.6,3131.3,0.23813237]
[1731773387594,0.00850834,3131.8,3131.3,0.23813237]
[1731773387750,0.00850834,3131.9,3131.6,3.19324]
[1731773388488,0.00850834,3131.9,3131.5,3.19326]
[1731773388783,3.7647308,3132.1,3131.7,3.19314]
[1731773389095,0.00850834,3131.9,3131.6,3.19323]
[1731773389336,0.00850834,3131.9,3131.5,6.38654]
[1731773389497,0.00850834,3131.9,3131.5,3.19326]
[1731773390028,7.04740679,3132.5,3132.0,3.19281]
[1731773390191,3.7647308,3132.5,3132.0,3.19281]
[1731773390520,3.7647308,3132.5,3132.1,3.19272]
[1731773391023,3.7647308,3132.5,3131.8,3.19301]
[1731773391237,3.7647308,3132.5,3132.0,3.19284]
[1731773392829,3.7647308,3132.5,3131.6,3.19321]
[1731773392830,0.00850834,3132.2,3131.6,3.19321]
[1731773393069,4.46178177,3132.5,3131.2,3.19359]
[1731773393070,0.00850834,3131.9,3131.2,3.19359]
[1731773393344,3.19287,3132.0,3131.3,3.19355]
[1731773393345,0.00850834,3131.7,3131.3,3.19355]
[1731773393531,0.00850834,3131.7,3131.4,3.19342]
[1731773394257,0.00850834,3132.0,3131.6,3.19325]
[1731773394406,0.00850834,3131.7,3131.4,3.19342]
[1731773394954,0.00850834,3131.7,3131.2,3.19363]
[1731773395745,0.00850834,3131.7,3131.2,6.38716]
[1731773395952,0.00850834,3131.7,3131.3,3.19355]
[1731773396111,0.00850834,3131.7,3131.2,0.55]
[1731773396301,0.00850834,3131.7,3131.1,0.55]
[1731773396707,3.20166834,3131.7,3131.1,0.55]
[1731773396949,4.17034117,3131.7,3131.1,0.55]
[1731773397306,0.97718117,3131.7,3131.1,0.55]
[1731773397505,0.00850834,3131.4,3130.9,3.19396]
[1731773397908,0.00850834,3131.4,3131.0,3.19385]
[1731773399225,0.00850834,3131.4,3131.2,3.19359]
[1731773399412,0.00850834,3131.8,3131.3,0.06387383]
[1731773399734,0.00850834,3131.8,3131.5,3.19333]
[1731773400503,0.00850834,3132.0,3131.6,3.19318]
[1731773400713,3.19267,3132.2,3131.4,3.74337]
[1731773400714,0.00850834,3131.8,3131.4,3.74337]
[1731773400912,0.00850834,3131.8,3131.3,3.19352]
[1731773401220,0.00850834,3131.6,3130.5,3.19432]
[1731773401428,0.00850834,3131.4,3130.9,3.19387]
[1731773402026,0.00850834,3131.4,3131.1,3.19376]
[1731773402211,0.00850834,3131.4,3131.2,0.3187]
[1731773402637,0.00850834,3132.0,3131.6,3.19318]
[1731773402840,3.20120834,3132.2,3131.7,3.19315]
[1731773403027,0.00850834,3131.9,3131.5,3.19327]
[1731773403222,0.00850834,3131.9,3131.4,3.19341]
[1731773403436,0.00850834,3131.7,3131.2,3.51235]
[1731773403751,3.95085558,3132.2,3132.0,3.19284]
[1731773403911,3.95085558,3133.1,3132.6,3.19223]
[1731773404110,3.95936392,3133.2,3132.8,3.192]
[1731773404320,0.00850834,3133.2,3132.8,3.192]
[1731773404522,0.00850834,3133.4,3133.0,3.19176]
[1731773404721,3.75622246,3133.8,3132.8,0.3187]
[1731773404722,0.00850834,3133.2,3132.8,0.3187]
[1731773404965,0.00850834,3133.2,3132.7,3.19213]
[1731773405171,0.00850834,3133.6,3133.0,0.3187]
[1731773405324,0.00850834,3133.6,3132.8,0.06383765]
[1731773405325,0.00850834,3133.6,3133.1,3.19163]
[1731773405666,0.00850834,3133.4,3133.1,3.19163]
[1731773406051,3.19086,3134.0,3133.1,3.19163]
[1731773406052,0.00850834,3133.6,3133.3,3.19152]
[1731773406250,0.00850834,3133.8,3133.4,3.19135]
[1731773406469,0.00850834,3134.0,3133.5,3.1913]
[1731773406631,0.69555008,3134.0,3133.7,3.19102]
[1731773406831,0.69555008,3134.0,3133.8,3.191]
[1731773407385,0.69555008,3134.0,3133.6,3.19119]
[1731773407527,0.00850834,3134.2,3133.9,3.19091]
[1731773407732,6.94633246,3134.7,3134.1,3.1907]
[1731773407928,0.00850834,3134.3,3133.9,3.19091]
[1731773408161,3.75622246,3134.7,3134.0,3.19081]
[1731773408342,3.19852834,3134.8,3133.7,3.55]
[1731773408343,0.70398342,3134.6,3133.7,3.55]
[1731773408561,0.70398342,3134.6,3134.1,3.19063]
[1731773408562,0.00850834,3134.6,3134.1,3.19063]
[1731773408867,0.00850834,3134.6,3134.3,3.1905]
[1731773409072,0.00850834,3134.6,3133.9,3.19088]
[1731773409259,0.00850834,3134.6,3134.1,3.1907]
[1731773409434,0.00850834,3134.6,3134.0,0.55]
[1731773409435,0.32836617,3134.6,3134.0,0.55]
[1731773409636,0.31985783,3134.6,3134.2,3.19056]
[1731773409973,0.00850834,3134.8,3134.3,3.19041]
[1731773410476,0.00850834,3135.0,3134.4,0.55]
[1731773410676,0.00850834,3135.0,3134.4,3.74032]
[1731773411380,3.50974983,3134.9,3134.4,0.55]
[1731773411580,0.00850834,3134.8,3134.1,0.55]
[1731773412117,3.19856834,3134.8,3134.1,0.55]
[1731773412301,3.19856834,3134.8,3134.1,3.1907]
[1731773412620,3.19856834,3134.8,3133.9,3.7409]
[1731773412621,3.19870834,3134.6,3134.0,3.1908]
[1731773413719,0.00850834,3134.6,3134.2,3.19057]
[1731773414025,0.00850834,3134.8,3134.4,3.19038]
[1731773414709,0.00850834,3134.8,3134.5,3.19028]
[1731773414903,0.00850834,3134.8,3134.6,3.19018]
[1731773415637,3.82148541,3135.4,3134.8,3.18998]
[1731773415638,0.00850834,3135.4,3134.8,3.18998]
[1731773415916,0.00850834,3135.4,3134.0,3.06380373]
[1731773415917,0.00850834,3135.2,3134.6,3.19019]
[1731773416122,0.00850834,3135.2,3134.7,3.19009]
[1731773416918,0.00850834,3135.2,3134.5,3.74027]
[1731773416919,3.19810834,3135.2,3134.5,3.74027]
[1731773417116,3.50951083,3135.1,3134.5,3.74029]
[1731773417327,3.50951083,3135.1,3134.2,3.19059]
[1731773417328,3.19841834,3134.9,3134.2,3.19059]
[1731773417619,3.50951083,3135.1,3133.7,3.19102]
[1731773417620,3.7647308,3134.7,3133.7,3.19102]
[1731773417819,3.7647308,3134.7,3132.3,5.0]
[1731773417820,3.1906,3134.2,3133.5,3.1913]
[1731773417980,3.19096,3133.9,3133.2,3.19156]
[1731773418327,0.319096,3133.8,3133.2,3.19155]
[1731773418479,0.319096,3133.8,3133.2,3.2553753]
[1731773418679,0.319096,3133.8,3132.6,3.19215]
[1731773418680,3.19983834,3133.5,3132.9,3.1919]
[1731773418884,0.00850834,3133.5,3132.9,3.1919]
[1731773419329,0.00850834,3133.5,3132.7,3.19213]
[1731773419330,3.19144,3133.4,3132.7,3.19205]
[1731773419537,0.63912383,3133.4,3132.9,3.19192]
[1731773419841,0.319096,3133.8,3133.0,0.06383243]
[1731773420049,0.00850834,3134.3,3133.6,3.19121]
[1731773420195,0.00850834,3134.3,3133.8,3.191]
[1731773420397,0.00850834,3134.3,3133.2,3.19156]
[1731773420398,0.00850834,3133.8,3133.2,3.19156]
[1731773420695,3.19111,3133.7,3133.1,0.55]
[1731773420912,0.32845017,3133.8,3132.6,3.1922]
[1731773420913,0.00850834,3133.4,3132.6,3.1922]
[1731773421144,0.00850834,3133.4,3132.8,3.19196]
[1731773421443,3.19994834,3133.4,3132.8,3.19196]
[1731773421737,3.19153,3133.3,3132.6,3.1922]
[1731773422038,3.19163,3133.2,3132.6,3.1922]
[1731773422201,0.00850834,3133.4,3132.7,0.55]
[1731773422509,3.19152,3133.3,3132.7,0.55]
[1731773422912,3.19152,3133.3,3132.8,0.55]
[1731773423329,0.31994183,3133.8,3133.2,0.55]
[1731773423330,0.00850834,3133.6,3133.2,0.55]
[1731773423533,3.19139,3133.5,3133.2,0.55]
[1731773423856,3.19139,3133.5,3133.0,0.55]
[1731773424308,3.19971834,3133.6,3133.0,0.55]
[1731773424514,0.00850834,3133.6,3133.0,3.80562941]
[1731773425649,3.19973834,3133.6,3133.0,0.61382941]
[1731773426157,3.19973834,3133.6,3133.0,0.55]
[1731773426657,3.19134,3133.5,3133.0,0.55]
[1731773426857,3.19172,3133.1,3132.5,3.19229]
[1731773427217,0.00850834,3132.8,3132.1,3.19268]
[1731773427559,3.19237,3132.5,3131.8,3.19295]
[1731773427914,3.19237,3132.5,3131.6,3.19323]
[1731773428154,3.19237,3132.5,3131.9,3.19294]
[1731773428367,0.00850834,3132.5,3131.8,3.19295]
[1731773428560,0.00850834,3132.5,3131.7,3.19312]
[1731773428561,0.00850834,3132.5,3132.0,3.19276]
[1731773429059,0.00850834,3132.5,3131.7,3.19311]
[1731773429271,3.20084834,3132.5,3131.9,3.19292]
[1731773429614,0.00850834,3132.5,3132.0,0.55]
[1731773429817,0.00850834,3132.5,3132.0,3.74283]
[1731773430322,3.20066834,3132.7,3132.2,0.55]
[1731773430539,0.00850834,3133.1,3132.4,0.55]
[1731773430742,3.75622246,3133.5,3132.7,0.55]
[1731773430743,0.00850834,3133.2,3132.7,0.55]
[1731773431800,3.20014834,3133.2,3132.7,0.55]
[1731773431940,3.20014834,3133.2,3132.0,3.19279]
[1731773431941,0.00850834,3132.2,3130.7,3.0]
[1731773432141,0.00850834,3132.2,3130.0,5.192]
[1731773432142,3.19301,3131.9,3131.2,3.19364]
[1731773432357,0.00850834,3132.0,3131.0,3.19385]
[1731773432358,3.19323,3131.7,3131.0,3.19385]
[1731773432565,3.19323,3131.7,3130.4,3.19447]
[1731773432566,3.7647308,3131.6,3130.7,3.19416]
[1731773432785,3.7647308,3131.6,3129.7,3.19509]
[1731773432786,3.19366,3131.2,3130.5,3.19435]
[1731773433098,0.00850834,3131.1,3130.3,3.19454]
[1731773433401,3.20257834,3130.8,3130.1,3.19476]
[1731773433702,3.20257834,3130.8,3129.9,3.25885521]
[1731773433703,3.20288834,3130.5,3129.9,3.25885521]
[1731773433844,3.20288834,3130.5,3129.7,3.19517]
[1731773434046,3.1947,3130.2,3129.5,3.19534]
[1731773434359,0.00850834,3130.3,3129.6,3.25918891]
[1731773434514,0.00850834,3130.3,3129.6,0.06389891]
[1731773434664,0.00850834,3130.5,3130.0,3.19478]
[1731773435013,0.00850834,3130.5,3130.0,3.19485]
[1731773435173,0.00850834,3130.7,3130.3,3.19453]
[1731773435376,0.00850834,3130.5,3130.1,3.19477]
[1731773435707,0.00850834,3130.5,3130.0,3.19488]
[1731773435864,0.00850834,3130.5,3129.6,0.32593189]
[1731773436065,0.00850834,3130.5,3130.2,0.55]
[1731773436710,0.00850834,3130.3,3129.7,3.19516]
[1731773437362,0.32881617,3130.3,3129.7,3.19516]
[1731773437786,3.52339617,3130.3,3129.7,3.19516]
[1731773438224,0.00850834,3130.1,3129.3,3.2866906]
[1731773438434,0.00850834,3130.1,3129.6,3.1952]
[1731773438782,0.00850834,3129.9,3129.3,3.2867106]
[1731773439024,3.20358834,3129.9,3129.3,0.0911206]
[1731773439338,0.00850834,3129.7,3129.3,0.0911206]
[1731773439538,0.00850834,3129.7,3129.3,3.2867006]
[1731773440035,0.00850834,3129.7,3129.4,3.19548]
[1731773440238,0.00850834,3129.7,3129.6,3.19529]
[1731773440389,0.00850834,3129.7,3129.5,0.55]
[1731773440725,0.32881617,3130.3,3129.8,3.19509]
[1731773440940,0.00850834,3130.4,3130.1,3.19476]
[1731773441227,0.00850834,3130.4,3130.2,3.74459]
[1731773441686,0.00850834,3130.4,3130.2,0.55]
[1731773441888,0.00850834,3130.4,3129.9,3.19496]
[1731773441889,0.00850834,3130.4,3130.0,0.55]
[1731773442235,0.00850834,3130.4,3129.3,3.59578266]
[1731773442236,3.20319834,3130.2,3129.8,0.55]
[1731773442529,0.00850834,3130.2,3129.8,0.55]
[1731773443128,0.00850834,3130.2,3129.6,0.61389856]
[1731773443430,0.00850834,3130.2,3129.9,0.55]
[1731773443730,0.00850834,3130.2,3129.7,0.55]
[1731773443926,0.00850834,3130.2,3129.8,0.55]
[1731773444131,0.00850834,3130.2,3129.6,3.19529]
[1731773444286,0.00850834,3129.9,3129.5,0.55]
[1731773444515,0.00850834,3129.7,3129.3,0.0911206]
[1731773444761,0.00850834,3129.5,3129.3,0.0911206]
[1731773445259,0.00850834,3129.8,3129.4,3.1955]
[1731773445418,0.00850834,3129.9,3129.4,3.1955]
[1731773445613,0.00850834,3129.9,3129.5,3.19538]
[1731773446827,0.00850834,3129.9,3129.6,0.55]
[1731773447131,0.00850834,3129.9,3129.3,3.2867106]
[1731773447132,0.00850834,3129.5,3129.4,0.55]
[1731773448259,0.00850834,3129.8,3129.4,3.7455]
[1731773448470,0.00850834,3130.0,3129.4,0.55]
[1731773448633,0.00850834,3130.0,3129.6,0.55]
[1731773448966,0.00850834,3129.8,3129.6,0.55]
[1731773449165,3.20359834,3129.8,3129.4,0.55]
[1731773449523,3.20359834,3129.8,3129.3,0.0911206]
[1731773449524,0.00850834,3130.0,3129.6,0.55]
[1731773449894,0.00850834,3130.0,3129.9,0.55]
[1731773450065,0.00850834,3130.3,3130.1,0.55]
[1731773450711,0.00850834,3130.5,3130.1,0.55]
[1731773450913,0.00850834,3130.5,3130.2,3.19459]
[1731773451111,3.0,3130.7,3130.1,0.55]
[1731773451112,0.00850834,3130.3,3130.1,0.55]
[1731773451718,0.00850834,3130.3,3130.0,0.55]
[1731773452485,0.00850834,3130.3,3130.2,0.55]
[1731773453914,0.00850834,3130.3,3130.0,3.74487]
[1731773454609,0.00850834,3130.3,3130.0,3.74488]
[1731773454923,0.00850834,3130.3,3130.0,0.55]
[1731773455473,0.00850834,3130.3,3130.0,3.74485]
[1731773456115,3.19431,3130.6,3129.8,0.3187]
[1731773456116,0.00850834,3129.9,3129.8,0.3187]
[1731773456272,0.00850834,3129.7,3129.2,0.3187]
[1731773456675,0.00850834,3129.7,3129.2,3.1957]
[1731773457034,0.00850834,3129.4,3129.2,3.19569]
[1731773457722,0.00850834,3129.4,3129.1,3.19577]
[1731773458076,0.00850834,3129.4,3129.3,0.6411206]
[1731773459016,9.9602308,3129.4,3129.3,0.0911206]
[1731773459225,11.27579188,3129.4,3129.3,0.0911206]
[1731773459578,11.28579188,3129.4,3129.3,0.0911206]
[1731773460518,4.51956942,3129.4,3129.3,0.0911206]
[1731773460730,0.00850834,3129.4,3129.3,0.0911206]
[1731773460935,0.64281265,3130.2,3129.3,3.2866606]
[1731773460936,3.19489,3130.0,3129.3,3.2866606]
[1731773461090,0.00850834,3129.9,3129.3,3.2866406]
[1731773461285,0.00850834,3129.9,3129.6,3.19525]
[1731773461701,0.00850834,3129.9,3129.5,3.19538]
[1731773461702,0.00850834,3129.9,3129.5,0.55]
[1731773462284,0.00850834,3129.9,3129.5,3.74533]
[1731773462485,0.00850834,3129.9,3129.5,0.55]
[1731773463053,0.00850834,3129.9,3129.4,3.74548]
[1731773463248,3.19437,3130.5,3129.8,0.55]
[1731773463398,0.00850834,3130.4,3130.1,3.19478]
[1731773463589,0.00850834,3130.4,3130.0,3.19478]
[1731773463792,0.00850834,3130.4,3130.1,3.74469]
[1731773464088,3.84226217,3130.8,3130.3,0.55]
[1731773464470,0.00850834,3130.5,3130.3,0.55]
[1731773464592,0.00850834,3130.5,3130.1,0.55]
[1731773465244,3.75622246,3131.1,3129.9,0.55]
[1731773465245,0.00850834,3130.2,3129.9,0.55]
[1731773465452,0.00850834,3130.0,3129.4,3.19547]
[1731773465590,0.32884317,3130.0,3129.5,0.55]
[1731773466126,6.95087246,3130.3,3130.0,0.55]
[1731773466127,0.00850834,3130.3,3130.0,0.55]
[1731773466308,0.00850834,3130.3,3130.0,3.19482]
[1731773466508,6.95043246,3130.7,3130.1,0.55]
[1731773466509,0.00850834,3130.5,3130.1,0.55]
[1731773466818,0.00850834,3130.3,3130.2,0.55]
[1731773467028,0.00850834,3130.5,3130.1,3.19476]
[1731773467198,0.00850834,3130.3,3130.2,0.55]
[1731773467395,3.19428,3130.6,3129.7,0.3187]
[1731773467396,0.00850834,3130.6,3130.3,0.55]
[1731773467707,0.00850834,3130.6,3130.4,0.55]
[1731773468033,0.00850834,3130.8,3130.4,3.74439]
[1731773468245,0.00850834,3130.8,3130.4,0.55]
[1731773468449,0.00850834,3131.2,3130.6,0.55]
[1731773468653,0.00850834,3131.2,3130.9,0.55]
[1731773469303,0.00850834,3131.2,3130.7,0.55]
[1731773469503,0.00850834,3131.2,3130.7,3.74416]
[1731773469943,0.00850834,3131.2,3130.9,0.55]
[1731773470748,0.00850834,3131.2,3130.2,3.19464]
[1731773470749,3.19377,3131.1,3130.6,0.55]
[1731773470903,0.00850834,3130.8,3130.6,0.55]
[1731773471106,0.00850834,3130.8,3130.4,3.19447]
[1731773471311,0.00850834,3131.2,3130.5,0.3187]
[1731773471620,0.00850834,3131.4,3131.1,3.19369]
[1731773471845,0.00850834,3131.8,3131.2,0.55]
[1731773472021,0.70426942,3131.8,3131.5,3.74334]
[1731773472202,0.70426942,3131.8,3131.5,0.55]
[1731773472718,0.00850834,3131.5,3131.1,3.74374]
[1731773473034,0.00850834,3131.5,3131.1,0.55]
[1731773473361,0.70426942,3131.8,3131.4,0.55]
[1731773473506,0.70426942,3131.8,3131.6,0.55]
[1731773473859,0.00850834,3131.7,3131.6,0.55]
[1731773474205,0.00850834,3131.5,3131.2,0.55]
[1731773474452,0.00850834,3131.5,3130.3,3.19449]
[1731773474453,0.00850834,3131.5,3131.0,0.55]
[1731773474648,3.19333,3131.6,3130.6,3.19421]
[1731773474649,3.20215834,3131.3,3130.6,3.19421]
[1731773474848,0.00850834,3131.1,3130.6,3.19421]
[1731773475019,0.65567156,3132.4,3130.9,0.01]
[1731773475224,0.00850834,3133.1,3132.8,3.19203]
[1731773475432,3.75622246,3133.8,3132.1,3.19274]
[1731773475433,0.00850834,3133.3,3132.1,3.19274]
[1731773475642,0.00850834,3133.3,3132.9,3.19184]
[1731773476066,0.00850834,3133.3,3133.0,0.55]
[1731773476246,0.00850834,3133.3,3132.8,0.55]
[1731773476449,0.32849117,3133.3,3132.8,3.74195]
[1731773476650,3.75622246,3133.8,3133.2,0.55]
[1731773476651,3.0,3133.6,3133.2,0.55]
[1731773476848,0.00850834,3133.3,3133.2,0.55]
[1731773477171,0.00850834,3133.3,3132.9,3.19184]
[1731773477172,0.00850834,3133.3,3133.0,0.55]
[1731773477537,0.00850834,3133.6,3133.0,3.74181]
[1731773477887,0.00850834,3133.6,3133.3,0.55]
[1731773478046,0.30935917,3133.6,3133.3,0.55]
[1731773478374,0.30935917,3133.6,3133.1,0.55]
[1731773478549,0.30935917,3133.6,3132.9,0.55]
[1731773478749,3.50056917,3133.6,3132.9,0.55]
[1731773478965,3.50056917,3133.6,3132.9,3.74192]
[1731773479270,0.30935917,3133.6,3132.9,3.74192]
[1731773479530,3.50057917,3133.6,3132.9,0.55]
[1731773479847,0.00850834,3133.4,3132.9,0.55]
[1731773480047,3.19998834,3133.4,3132.7,0.55]
[1731773480276,3.19162,3133.2,3132.5,0.55]
[1731773480571,3.19162,3133.2,3132.6,0.55]
[1731773480777,3.19998834,3133.4,3132.6,0.55]
[1731773480953,3.19998834,3133.4,3132.8,0.55]
[1731773481473,3.19998834,3133.4,3132.6,3.74223]
[1731773481995,0.00850834,3133.4,3132.9,3.1919]
[1731773482282,3.75622246,3134.2,3133.2,0.55]
[1731773482283,3.19086,3134.0,3133.2,0.55]
[1731773482588,3.19098,3133.9,3133.2,3.7416]
[1731773482754,3.19948834,3133.9,3133.2,3.7416]
[1731773483296,3.19129,3133.6,3133.0,0.55]
[1731773483497,3.0,3134.0,3133.0,0.55]
[1731773483498,3.19983834,3133.5,3133.0,0.55]
[1731773483654,3.19983834,3133.5,3131.5,3.63759558]
[1731773483655,3.19145,3133.4,3132.7,3.74212]
[1731773483971,3.20002834,3133.3,3132.7,0.55]
[1731773484518,3.20002834,3133.3,3132.9,0.55]
[1731773484519,0.00850834,3133.3,3132.9,0.55]
[1731773485281,0.00850834,3133.3,3132.9,3.7419]
[1731773485480,0.00850834,3133.7,3132.8,0.55]
[1731773485688,3.19945834,3133.9,3133.1,0.55]
[1731773485888,3.19071,3134.1,3133.1,0.55]
[1731773485889,0.00850834,3134.0,3133.2,0.0638274]
[1731773486059,0.00850834,3134.0,3133.3,0.55]
[1731773486253,0.00850834,3134.0,3133.1,0.55]
[1731773486467,0.01,3134.6,3132.4,3.75622246]
[1731773486468,0.00850834,3133.7,3132.8,3.55]
[1731773487118,3.19970834,3133.7,3132.8,0.55]
[1731773487395,3.19121,3133.6,3133.0,0.55]
[1731773487767,3.19121,3133.6,3132.8,3.0]
[1731773487973,3.19121,3133.6,3133.0,0.55]
[1731773488509,3.20003834,3133.3,3132.4,3.38253578]
[1731773489365,3.20003834,3133.3,3132.5,3.3187]
[1731773489568,3.20003834,3133.3,3132.6,0.06383578]
[1731773489766,3.20003834,3133.3,3132.7,0.55]
[1731773489993,3.20003834,3133.3,3132.6,0.55]
[1731773490976,0.00850834,3133.3,3132.6,0.55]
[1731773491176,3.19113,3133.7,3132.6,0.55]
[1731773491177,3.19113,3133.7,3132.8,3.74195]
[1731773491377,3.19094,3133.9,3133.1,3.19171]
[1731773491563,0.00850834,3133.9,3133.2,0.55]
[1731773491759,0.00850834,3133.9,3133.2,3.1916]
[1731773491965,0.00850834,3134.1,3133.3,0.61382277]
[1731773492163,0.00850834,3134.1,3133.5,0.55]
[1731773492398,0.00850834,3134.1,3133.5,0.61381879]
[1731773492601,0.00850834,3134.1,3133.3,0.55]
[1731773492907,0.00850834,3133.9,3133.1,0.55]
[1731773493266,3.19948834,3133.9,3133.1,3.7417]
[1731773493708,3.19109,3133.8,3133.0,0.55]
[1731773494201,3.19113,3133.7,3133.0,0.55]
[1731773494512,0.00850834,3133.9,3133.0,0.55]
[1731773494742,0.00850834,3133.9,3133.2,0.55]
[1731773494892,0.32844317,3133.9,3133.2,0.55]
[1731773495098,0.00850834,3133.7,3133.0,0.55]
[1731773495328,0.00850834,3133.7,3133.0,3.74182]
[1731773495535,0.00850834,3133.7,3133.1,3.19171]
[1731773495745,0.00850834,3133.7,3133.2,0.55]
[1731773495948,0.32844317,3133.9,3133.2,0.55]
[1731773496144,0.32844317,3133.9,3133.3,3.1915]
[1731773496295,0.31993483,3133.9,3133.4,0.55]
[1731773496498,0.00850834,3134.0,3133.4,0.55]
[1731773496499,0.00850834,3133.7,3133.4,0.55]
[1731773496734,0.00850834,3133.7,3133.3,0.55]
[1731773497233,0.00850834,3133.7,3133.2,0.55]
[1731773497456,0.00850834,3133.7,3133.4,0.55]
[1731773497805,3.19962834,3133.7,3133.4,0.55]
[1731773498235,0.00850834,3133.7,3133.4,0.55]
[1731773498741,0.00850834,3133.7,3133.3,3.74147]
[1731773498914,0.00850834,3134.0,3133.5,3.74131]
[1731773499624,0.00850834,3134.0,3133.3,3.573995]
[1731773499625,3.19931834,3134.0,3133.4,0.55]
[1731773499829,3.19091,3133.9,3133.4,0.55]
[1731773500003,3.19939834,3134.0,3133.4,0.55]
[1731773500198,3.19119,3133.7,3133.4,0.55]
[1731773500395,0.00850834,3133.8,3132.5,3.0]
[1731773500396,3.19980834,3133.6,3133.2,0.55]
[1731773500609,3.19135,3133.5,3133.2,0.55]
[1731773500799,3.19992834,3133.4,3133.0,0.55]
[1731773501023,3.19992834,3133.4,3132.7,3.51079]
[1731773501024,3.19158,3133.3,3132.7,3.51079]
[1731773501897,3.19158,3133.3,3132.8,3.19203]
[1731773502106,0.00850834,3133.1,3132.7,3.51079]
[1731773502359,0.00850834,3133.3,3133.0,3.19173]